bitfinex-derivatives/quotes_SOLF0:USTF0_20241222
["timestamp","ask_amount","ask_price","bid_price","bid_amount"]
[1734881176536,1.6311,181.88,181.8,3.72]
[1734881177141,2.7518,181.85,181.81,2.7523]
[1734881177535,1.6311,181.88,181.8,3.72]
[1734881177742,2.7522,181.83,181.8,3.72]
[1734881179240,1.6311,181.88,181.76,5.389]
[1734881179440,14.70977892,181.86,181.73,95.11567287]
[1734881179646,1.5959,181.85,181.73,95.11567287]
[1734881179940,1.5959,181.85,181.76,2.7532]
[1734881180346,1.5959,181.85,181.73,3.7]
[1734881180644,2.7525,181.81,181.77,2.753]
[1734881181449,1.5959,181.85,181.73,3.7]
[1734881181949,1.5959,181.85,181.78,2.7527]
[1734881181950,2.7522,181.83,181.78,2.7527]
[1734881182146,2.7522,181.83,181.74,22.9122235]
[1734881182948,2.7522,181.83,181.79,2.7526]
[1734881183744,2.7522,181.83,181.8,2.7525]
[1734881184442,1.6311,181.88,181.79,3.7]
[1734881185550,2.7517,181.86,181.82,2.7521]
[1734881187250,1.722,181.9,181.83,2.752]
[1734881188454,2.7516,181.87,181.83,2.752]
[1734881190349,1.722,181.9,181.79,5.4074]
[1734881190549,14.70977892,181.89,181.79,1.7074]
[1734881190751,0.95306953,181.88,181.79,1.7074]
[1734881190952,2.7519,181.85,181.81,2.7524]
[1734881191252,2.7519,181.85,181.79,1.7074]
[1734881191749,2.752,181.84,181.79,1.7074]
[1734881191949,14.70977892,181.89,181.79,1.7074]
[1734881192148,0.95309561,181.88,181.79,1.7074]
[1734881192349,2.7519,181.85,181.81,2.7523]
[1734881193058,1.722,181.9,181.79,1.7074]
[1734881194555,2.7515,181.87,181.83,2.752]
[1734881195255,2.7513,181.89,181.84,2.7518]
[1734881197257,2.7513,181.89,181.79,1.7074]
[1734881197258,14.70977892,181.89,181.81,2.7523]
[1734881197462,14.70977892,181.89,181.8,22.96635967]
[1734881197657,1.646,181.91,181.8,22.96635967]
[1734881197853,2.7515,181.87,181.83,2.7521]
[1734881198762,14.70977892,181.92,181.79,1.7074]
[1734881198763,2.7513,181.89,181.84,2.7518]
[1734881198962,2.7513,181.89,181.79,1.7074]
[1734881199365,2.7513,181.89,181.85,2.7518]
[1734881200267,2.7509,181.91,181.87,2.7514]
[1734881200567,14.70977892,181.95,181.83,3.7]
[1734881200759,0.95275989,181.94,181.83,3.7]
[1734881200963,9.41306266,181.97,181.83,3.7]
[1734881201256,2.7509,181.92,181.88,2.7512]
[1734881201462,1.7354,181.97,181.84,1.6215]
[1734881201662,0.9527133,181.96,181.85,1.6364]
[1734881202062,0.9527133,181.96,181.86,1.7219]
[1734881202564,2.7505,181.94,181.9,2.7509]
[1734881203263,96.92512503,181.98,181.89,3.7]
[1734881203459,2.7502,181.96,181.92,2.7506]
[1734881203767,14.70977892,182.01,181.89,3.7]
[1734881205060,1.6425,182.03,181.89,3.7]
[1734881205661,4.97216612,181.99,181.95,2.7502]
[1734881206869,2.22236612,181.99,181.96,2.75]
[1734881208763,2.22236612,181.99,181.89,3.7]
[1734881209571,2.22236612,181.99,181.96,2.7501]
[1734881210066,4.97216612,181.99,181.94,2.7503]
[1734881211264,4.97216612,181.99,181.95,2.7503]
[1734881211669,2.22236612,181.99,181.88,14.70977892]
[1734881211871,2.22236612,181.99,181.98,2.7498]
[1734881215669,14.70977892,182.12,182.04,2.7489]
[1734881215870,2.7485,182.08,182.04,2.7489]
[1734881216073,14.70977892,182.12,182.01,3.7]
[1734881216273,0.9519537,182.11,182.04,2.7489]
[1734881216469,2.7483,182.09,182.04,2.7489]
[1734881216670,14.70977892,182.12,182.01,3.7]
[1734881216868,2.7486,182.07,182.02,2.7492]
[1734881217073,2.7486,182.07,182.01,3.7]
[1734881217274,14.70977892,182.12,182.01,3.7]
[1734881217579,2.7483,182.09,182.01,3.7]
[1734881218274,1.71,182.14,182.01,3.7]
[1734881218469,0.95175267,182.13,182.01,18.40977892]
[1734881218670,51.41913133,182.16,182.04,14.70977892]
[1734881218871,2.7475,182.14,181.99,3.3941]
[1734881219073,69.82891025,182.16,182.06,2.7485]
[1734881219277,0.95164351,182.15,182.07,3.7]
[1734881219483,14.70977892,182.22,182.08,7.1141]
[1734881219679,0.95138073,182.21,182.14,2.7473]
[1734881219876,14.70977892,182.22,182.14,2.7473]
[1734881220077,2.7467,182.19,182.08,21.82387892]
[1734881220273,14.70977892,182.22,182.08,7.1141]
[1734881220474,0.95128866,182.21,182.08,7.1141]
[1734881220678,2.68268866,182.21,182.08,7.1141]
[1734881220984,14.70977892,182.16,182.06,1.6925]
[1734881221173,1.6454,182.15,182.06,1.6925]
[1734881221976,18.40977892,182.16,182.06,4.4411]
[1734881222278,2.7482,182.1,182.02,3.7]
[1734881222482,14.70977892,182.13,182.04,2.7489]
[1734881222682,0.95170394,182.12,182.01,1.642]
[1734881222882,2.7484,182.08,182.03,2.7489]
[1734881223183,3.7,182.16,182.01,1.642]
[1734881223381,2.7477,182.13,182.07,2.7483]
[1734881223886,2.748,182.11,182.06,2.7486]
[1734881224182,3.7,182.16,182.05,3.7]
[1734881224380,2.7482,182.09,182.05,3.7]
[1734881224581,14.70977892,182.14,182.05,3.7]
[1734881224782,14.70977892,182.14,182.01,5.342]
[1734881224978,2.7486,182.07,182.02,2.7492]
[1734881225179,2.7486,182.07,182.01,5.342]
[1734881225882,2.7488,182.06,182.01,5.342]
[1734881226477,2.7485,182.08,182.03,2.749]
[1734881226673,1.6812,182.12,182.03,2.749]
[1734881226885,1.6812,182.12,182.01,5.342]
[1734881227184,2.7485,182.07,182.03,2.749]
[1734881227581,2.7487,182.06,182.02,2.7492]
[1734881227783,14.70977892,182.07,181.94,95.11567287]
[1734881228078,14.70977892,182.07,181.94,96.70027287]
[1734881228285,2.7492,182.02,181.98,2.7498]
[1734881228477,3.7,182.08,181.94,19.99437892]
[1734881228680,14.70977892,182.1,181.94,19.99437892]
[1734881228880,2.7485,182.07,182.03,2.7491]
[1734881229675,14.70977892,182.1,182.03,2.7491]
[1734881229880,2.7483,182.09,182.04,2.7488]
[1734881230086,1.1793,182.15,182.01,8.6479]
[1734881230284,1.6543,182.16,182.03,14.70977892]
[1734881230483,1.7057,182.18,182.09,2.748]
[1734881230679,0.95147037,182.17,182.09,2.748]
[1734881230885,1.7057,182.18,182.07,3.7]
[1734881231086,1.7057,182.18,182.08,1.6743]
[1734881231484,1.7057,182.18,182.08,3.3112]
[1734881231688,2.7472,182.16,182.11,2.7478]
[1734881232487,3.7,182.21,182.13,2.7475]
[1734881233581,2.747,182.18,182.13,2.7475]
[1734881233785,2.747,182.18,182.14,2.7474]
[1734881234088,55.08276929,182.24,182.09,14.70977892]
[1734881234288,0.95126896,182.23,182.09,14.70977892]
[1734881234686,2.7466,182.2,182.12,2.7476]
[1734881234885,2.7466,182.2,182.12,3.68]
[1734881236089,2.7466,182.2,182.15,2.7472]
[1734881236789,2.7472,182.16,182.11,2.7478]
[1734881236989,14.70977892,182.22,182.11,2.7478]
[1734881237189,14.70977892,182.22,182.1,22.72302157]
[1734881237388,1.6865,182.23,182.1,22.72302157]
[1734881237792,2.7468,182.19,182.08,126.95893172]
[1734881238789,51.40276929,182.24,182.09,114.11637568]
[1734881238993,0.95117653,182.23,182.09,114.11637568]
[1734881239400,0.95117653,182.23,182.08,35.54325885]
[1734881239401,0.95117653,182.23,182.13,2.7475]
[1734881240193,2.7469,182.18,182.13,2.7475]
[1734881241684,53.08716929,182.24,182.12,3.68]
[1734881241890,14.70977892,182.2,182.09,91.41567287]
[1734881242294,2.7477,182.13,182.09,91.41567287]
[1734881242691,2.7477,182.13,182.08,7.71]
[1734881242887,2.7478,182.12,182.08,7.71]
[1734881243691,2.748,182.11,182.08,3.3112]
[1734881243889,14.70977892,182.17,182.08,1.6743]
[1734881244289,14.70977892,182.14,182.05,91.41567287]
[1734881244497,14.70977892,182.14,182.04,93.39875839]
[1734881245195,14.70977892,182.14,182.04,1.98308552]
[1734881245497,3.68,182.13,182.03,1.6988]
[1734881245792,2.7486,182.07,182.03,91.41567287]
[1734881245987,14.70977892,182.11,182.03,91.41567287]
[1734881246392,2.7489,182.04,182.03,91.41567287]
[1734881246793,3.68,182.07,181.99,91.41567287]
[1734881246994,2.7494,182.02,181.99,91.41567287]
[1734881247695,2.7494,182.02,181.96,1.719]
[1734881247892,2.7497,181.99,181.95,94.16587287]
[1734881248494,14.70977892,182.05,181.94,95.09567287]
[1734881248800,2.7495,182.01,181.96,2.7501]
[1734881249097,14.70977892,182.05,181.94,95.09567287]
[1734881249293,14.70977892,182.05,181.97,2.75]
[1734881250096,2.7493,182.02,181.97,2.75]
[1734881250398,14.70977892,182.11,181.95,14.70977892]
[1734881250699,2.7486,182.07,181.95,14.70977892]
[1734881250892,2.7486,182.07,182.01,2.7493]
[1734881251095,14.70977892,182.11,181.95,14.70977892]
[1734881251293,2.7482,182.09,181.98,14.70977892]
[1734881251499,2.7482,182.09,182.02,2.7492]
[1734881251695,2.7482,182.09,182.03,3.2579]
[1734881252098,2.748,182.1,182.03,3.2579]
[1734881252292,3.68,182.12,182.03,3.2579]
[1734881253093,3.68,182.17,182.03,3.2579]
[1734881254698,14.70977892,182.19,182.03,3.2579]
[1734881254899,18.38977892,182.19,182.04,37.5094798]
[1734881255095,14.70977892,182.19,182.04,37.5094798]
[1734881255302,14.70977892,182.19,182.11,2.7477]
[1734881256200,2.7472,182.16,182.11,2.7477]
[1734881256393,3.68,182.21,182.09,3.68]
[1734881256590,3.68,182.21,182.1,1.7057]
[1734881257094,14.70977892,182.22,182.1,1.7057]
[1734881257390,2.7464,182.21,182.16,2.747]
[1734881258098,2.7464,182.21,182.17,2.747]
[1734881258299,51.40276929,182.24,182.17,2.747]
[1734881258498,2.7462,182.22,182.17,2.747]
[1734881259708,66.11254821,182.24,182.14,2.7474]
[1734881259910,14.70977892,182.21,182.1,24.4272046]
[1734881260308,2.7471,182.17,182.12,2.7476]
[1734881260710,2.7479,182.11,182.06,25.4701046]
[1734881260912,18.38977892,182.14,182.06,22.7215046]
[1734881261414,18.38977892,182.14,182.03,186.06420852]
[1734881261415,18.38977892,182.14,182.03,3.2579]
[1734881261611,3.68,182.19,182.03,17.96767892]
[1734881261910,2.7471,182.16,182.11,2.7478]
[1734881262109,19.29527892,182.2,182.08,3.68]
[1734881262110,27.13624281,182.2,182.08,3.68]
[1734881262414,25.42774281,182.2,182.08,3.68]
[1734881262616,2.7467,182.19,182.14,2.7474]
[1734881266219,2.7465,182.21,182.16,2.747]
[1734881266719,23.72974281,182.23,182.16,2.747]
[1734881267019,2.7466,182.2,182.16,2.747]
[1734881267615,2.7467,182.19,182.14,2.7473]
[1734881267810,2.7467,182.19,182.09,1.7111]
[1734881268217,2.7467,182.19,182.15,2.7472]
[1734881268917,2.7468,182.18,182.14,2.7474]
[1734881269621,23.72974281,182.23,182.14,2.7474]
[1734881269622,2.7467,182.19,182.14,2.7474]
[1734881270223,2.7465,182.2,182.15,2.7472]
[1734881270423,2.7465,182.2,182.13,1.718]
[1734881270819,2.7465,182.2,182.16,2.7471]
[1734881271025,2.7463,182.22,182.13,3.3652]
[1734881271420,23.72974281,182.26,182.13,3.3652]
[1734881271622,2.7463,182.22,182.13,3.3652]
[1734881272019,2.7463,182.22,182.17,2.7468]
[1734881273116,23.72974281,182.26,182.17,2.7468]
[1734881273326,2.7464,182.21,182.13,3.3652]
[1734881273522,2.7464,182.21,182.16,2.7471]
[1734881273717,2.7464,182.21,182.13,3.3652]
[1734881274021,2.7464,182.21,182.17,2.7468]
[1734881274723,2.7463,182.22,182.17,2.7468]
[1734881275127,2.7463,182.22,182.18,2.7468]
[1734881275928,25.37594281,182.26,182.13,3.3652]
[1734881276223,0.95105378,182.25,182.15,2.7472]
[1734881277223,2.746,182.24,182.16,2.747]
[1734881277522,2.746,182.24,182.13,3.3652]
[1734881277824,2.7458,182.25,182.21,2.7462]
[1734881278024,3.66,182.28,182.14,23.72974281]
[1734881278322,3.66,182.28,182.15,5.18267718]
[1734881278525,2.746,182.24,182.19,2.7465]
[1734881278725,2.746,182.24,182.14,23.72974281]
[1734881280529,2.746,182.24,182.2,2.7464]
[1734881280723,23.72974281,182.26,182.13,3.3652]
[1734881280926,2.61518261,182.25,182.13,3.3652]
[1734881281127,1.6642,182.25,182.13,3.3652]
[1734881281827,2.7464,182.21,182.17,2.7469]
[1734881282032,1.6642,182.25,182.13,3.3652]
[1734881282225,2.7466,182.2,182.15,2.7471]
[1734881284226,2.7467,182.19,182.16,2.7471]
[1734881285324,3.66,182.21,182.09,1.7111]
[1734881285730,14.59536076,182.19,182.09,1.7111]
[1734881285922,2.7476,182.14,182.1,2.748]
[1734881286129,2.7476,182.14,182.08,1.6716]
[1734881286130,14.59536076,182.16,182.08,1.6716]
[1734881286730,2.7478,182.12,182.08,1.6716]
[1734881287334,2.7476,182.13,182.1,2.748]
[1734881287533,1.1748,182.2,182.08,1.6716]
[1734881287828,2.747,182.17,182.13,2.7475]
[1734881288034,2.747,182.17,182.08,1.6716]
[1734881288035,3.66,182.21,182.08,1.6716]
[1734881288635,3.66,182.21,182.11,2.7478]
[1734881288835,0.95128042,182.2,182.08,1.6716]
[1734881289035,2.7471,182.17,182.13,2.7475]
[1734881289234,3.66,182.21,182.08,1.6716]
[1734881289433,14.59536076,182.22,182.08,1.6716]
[1734881289639,14.59536076,182.22,182.14,2.7473]
[1734881289831,0.95121848,182.21,182.1,3.66]
[1734881290232,14.59536076,182.22,182.1,3.66]
[1734881290430,0.95129889,182.21,182.1,3.66]
[1734881290726,2.7475,182.14,182.1,6.4079]
[1734881291033,14.59536076,182.22,182.1,3.66]
[1734881291232,2.7471,182.17,182.13,2.7475]
[1734881292430,14.59536076,182.25,182.16,2.747]
[1734881292625,0.95111064,182.24,182.16,2.747]
[1734881293435,2.7467,182.19,182.16,2.747]
[1734881293631,14.59536076,182.25,182.14,2.7473]
[1734881293835,0.95109908,182.24,182.14,2.7473]
[1734881294133,2.7469,182.18,182.14,2.7473]
[1734881294434,2.7469,182.18,182.15,2.7472]
[1734881295034,2.747,182.17,182.13,2.7475]
[1734881295339,14.59536076,182.25,182.11,1.5958]
[1734881295631,2.7468,182.19,182.15,2.7473]
[1734881295838,14.59536076,182.25,182.12,5.20248559]
[1734881296033,2.7469,182.18,182.14,2.7473]
[1734881296629,2.747,182.17,182.11,1.5958]
[1734881296934,2.747,182.17,182.13,2.7475]
[1734881297334,2.7464,182.22,182.14,2.7473]
[1734881297534,14.59536076,182.25,182.11,1.5958]
[1734881297730,0.95113791,182.24,182.11,1.5958]
[1734881297927,2.7467,182.2,182.15,2.7472]
[1734881298638,2.7467,182.2,182.16,2.7471]
[1734881299333,1.738,182.27,182.11,1.5958]
[1734881299538,0.95108854,182.26,182.13,14.59536076]
[1734881299739,11.78217,182.33,182.13,14.59536076]
[1734881299740,0.95108854,182.25,182.14,1.6477]
[1734881299947,5.284,182.29,182.15,5.21047195]
[1734881300240,2.7457,182.26,182.22,2.7461]
[1734881300433,5.2894,182.33,182.17,1.6955]
[1734881300636,0.95076706,182.32,182.17,1.6955]
[1734881300839,2.7452,182.29,182.24,2.7458]
[1734881301038,2.7452,182.29,182.19,1.6626]
[1734881301431,2.7452,182.29,182.2,5.20702258]
[1734881302038,2.7452,182.29,182.21,5.20702258]
[1734881302245,2.7452,182.29,182.22,5.3568]
[1734881302636,2.7452,182.29,182.24,2.7458]
[1734881303436,51.36804959,182.37,182.22,5.3568]
[1734881303642,0.95068411,182.36,182.25,14.59536076]
[1734881303941,14.59536076,182.4,182.26,1.6975]
[1734881304240,3.64,182.41,182.32,2.7446]
[1734881304241,2.7439,182.38,182.32,2.7446]
[1734881304632,2.7437,182.39,182.34,2.7444]
[1734881305442,14.59536076,182.43,182.31,1.6144]
[1734881305641,2.7435,182.4,182.35,2.7441]
[1734881306234,2.7433,182.42,182.36,2.744]
[1734881306435,14.59536076,182.43,182.31,1.6144]
[1734881306644,0.95012169,182.42,182.31,1.6144]
[1734881307447,2.7435,182.4,182.35,2.7442]
[1734881308044,2.7433,182.42,182.31,16.20976076]
[1734881308248,7.0326,182.48,182.31,16.20976076]
[1734881308541,2.7428,182.45,182.39,2.7435]
[1734881308736,2.7428,182.45,182.36,3.64]
[1734881308942,2.7428,182.45,182.37,1.722]
[1734881310143,3.64,182.59,182.4,14.59536076]
[1734881310343,14.59536076,182.57,182.4,14.59536076]
[1734881310544,0.94957105,182.56,182.4,14.59536076]
[1734881310743,2.7419,182.51,182.45,2.7427]
[1734881311142,2.7419,182.51,182.44,3.64]
[1734881311345,2.7419,182.51,182.46,2.7426]
[1734881311746,2.7419,182.51,182.44,3.64]
[1734881312148,2.7419,182.51,182.46,2.7426]
[1734881312549,2.7419,182.51,182.44,3.64]
[1734881313149,2.7419,182.51,182.43,2.743]
[1734881313448,2.7419,182.51,182.45,3.64]
[1734881313949,2.7416,182.53,182.45,3.64]
[1734881314149,14.59536076,182.57,182.45,3.64]
[1734881315449,2.7419,182.51,182.46,2.7426]
[1734881316251,2.7422,182.49,182.44,2.7428]
[1734881317754,2.7423,182.48,182.43,2.743]
[1734881318147,2.7423,182.48,182.42,3.64]
[1734881318552,2.7423,182.48,182.43,2.743]
[1734881318951,2.7429,182.44,182.39,2.7436]
[1734881319148,14.59536076,182.48,182.38,49.66527]
[1734881320054,0.94985022,182.47,182.38,49.66527]
[1734881320254,3.64,182.46,182.38,49.66527]
[1734881320455,2.7436,182.4,182.38,49.66527]
[1734881320653,3.64,182.46,182.38,49.66527]
[1734881321055,2.7437,182.39,182.38,49.66527]
[1734881323560,2.7437,182.39,182.38,42.80657]
[1734881323768,2.7448,182.32,182.28,3.64]
[1734881323965,14.59536076,182.39,182.26,1.7321]
[1734881324160,0.95036596,182.38,182.26,1.7321]
[1734881324366,14.59536076,182.39,182.26,1.7321]
[1734881324868,2.7445,182.34,182.29,2.745]
[1734881325061,14.59536076,182.35,182.25,3.3559]
[1734881325267,3.64,182.34,182.25,3.3559]
[1734881325569,2.7455,182.27,182.25,3.3559]
[1734881325768,2.7455,182.27,182.25,1.6709]
[1734881326164,2.7453,182.28,182.25,1.6709]
[1734881326667,3.64,182.34,182.21,1.685]
[1734881326964,0.95067694,182.33,182.21,1.685]
[1734881327167,2.7456,182.27,182.21,4.4313]
[1734881327668,2.7456,182.27,182.21,1.685]
[1734881327873,2.7453,182.28,182.23,2.746]
[1734881328970,2.7455,182.27,182.22,2.7462]
[1734881329170,2.7455,182.27,182.21,1.685]
[1734881330470,2.7456,182.26,182.21,1.685]
[1734881331371,2.7458,182.25,182.21,1.685]
[1734881332576,2.7453,182.28,182.22,2.7461]
[1734881332773,3.64,182.31,182.21,1.685]
[1734881333173,2.7453,182.28,182.22,2.7461]
[1734881333474,2.7453,182.28,182.21,1.685]
[1734881334176,3.64,182.31,182.21,1.685]
[1734881335277,2.7456,182.27,182.22,2.7462]
[1734881335477,3.64,182.31,182.21,1.685]
[1734881336072,2.7454,182.28,182.23,2.746]
[1734881336672,2.7455,182.27,182.23,2.746]
[1734881337976,3.64,182.31,182.23,2.746]
[1734881338165,3.64,182.31,182.21,1.685]
[1734881340375,2.7458,182.25,182.21,4.4314]
[1734881340672,14.59536076,182.29,182.17,27.85758134]
[1734881340879,14.59536076,182.26,182.17,22.71962609]
[1734881341179,2.7468,182.18,182.17,22.71962609]
[1734881341873,2.7474,182.15,182.13,0.20193]
[1734881343381,2.7474,182.15,182.11,2.7479]
[1734881344973,2.7478,182.12,182.08,1.6198]
[1734881345884,2.7478,182.12,182.07,4.7312522]
[1734881346184,14.59536076,182.14,182.03,4.993]
[1734881346377,14.59536076,182.14,182.05,0.31986]
[1734881347581,2.748,182.11,182.06,2.7486]
[1734881348277,3.64,182.16,182.05,0.31986]
[1734881348479,2.7478,182.12,182.07,2.7484]
[1734881348980,14.59536076,182.17,182.05,0.31986]
[1734881349176,3.64,182.16,182.05,0.31986]
[1734881349782,2.7473,182.15,182.1,2.748]
[1734881350680,3.64,182.16,182.06,3.64]
[1734881350983,3.64,182.16,182.05,0.31986]
[1734881351180,3.64,182.16,182.05,3.06856]
[1734881351386,14.59536076,182.14,182.05,3.06856]
[1734881351884,14.59536076,182.14,182.05,0.31986]
[1734881352682,14.59536076,182.11,182.05,0.31986]
[1734881352888,14.59536076,182.08,182.05,0.31986]
[1734881353079,3.64,182.07,182.05,0.31986]
[1734881353278,2.7486,182.06,182.05,0.31986]
[1734881353679,18.23536076,182.07,181.98,91.41567287]
[1734881353885,14.59536076,182.03,181.94,91.41567287]
[1734881354884,14.59536076,182.03,181.93,152.432765]
[1734881355081,18.23536076,182.03,181.91,3.3615]
[1734881355689,2.7496,182.0,181.95,2.7502]
[1734881356392,2.7494,182.02,181.96,2.75]
[1734881356692,3.64,182.03,181.91,94.77717287]
[1734881356892,18.23536076,182.06,181.92,95.05567287]
[1734881357106,2.7491,182.03,181.92,95.05567287]
[1734881357683,2.7491,182.03,181.94,91.41567287]
[1734881358282,2.7491,182.03,181.95,114.07929831]
[1734881358482,2.7491,182.03,181.98,2.7498]
[1734881359288,14.59536076,182.03,181.96,22.66362544]
[1734881359692,2.7498,181.99,181.95,91.41567287]
[1734881359993,18.21536076,182.0,181.95,91.41567287]
[1734881360383,2.7497,181.99,181.95,91.41567287]
[1734881360588,2.7497,181.99,181.94,2.7504]
[1734881360988,14.59536076,182.07,181.92,22.57738197]
[1734881360989,14.59536076,182.03,181.92,22.57738197]
[1734881361290,3.62,182.02,181.93,22.57738197]
[1734881362095,3.62,182.02,181.94,22.57738197]
[1734881362292,2.7494,182.01,181.94,22.57738197]
[1734881362495,3.62,182.02,181.94,22.57738197]
[1734881362994,14.59536076,182.07,181.93,96.55760925]
[1734881363196,14.59536076,182.07,181.94,5.14193638]
[1734881363395,2.749,182.04,181.99,2.7496]
[1734881363791,3.62,182.06,181.99,2.7496]
[1734881363996,2.7494,182.02,181.97,2.75]
[1734881364688,14.57598147,182.04,181.97,2.75]
[1734881364897,14.59536076,182.01,181.95,121.8628422]
[1734881365097,18.21536076,182.01,181.95,121.8628422]
[1734881365696,18.21536076,182.01,181.94,152.432765]
[1734881365993,18.21536076,182.01,181.92,121.8628422]
[1734881365994,3.62,182.01,181.92,121.8628422]
[1734881366195,6.3695,182.01,181.92,121.8628422]
[1734881366392,6.3695,182.01,181.93,5.15048331]
[1734881366591,2.73631873,182.01,181.94,5.15048331]
[1734881366791,2.73631873,182.01,181.96,2.75]
[1734881367188,14.59536076,182.04,181.98,2.7498]
[1734881367392,14.59536076,182.04,181.94,22.42657631]
[1734881367699,14.59536076,182.04,181.95,5.15010089]
[1734881368097,2.7491,182.03,181.96,5.15010089]
[1734881368498,14.59536076,182.04,181.97,5.15010089]
[1734881368894,14.59536076,182.04,181.98,5.15010089]
[1734881369099,2.75,181.98,181.94,25.17697631]
[1734881369297,3.62,182.0,181.94,22.42657631]
[1734881369496,3.62,182.0,181.95,5.1611153]
[1734881369698,2.7499,181.98,181.94,22.42657631]
[1734881369897,2.7499,181.98,181.93,2.7505]
[1734881370101,3.62,182.0,181.93,2.7505]
[1734881370401,3.62,182.0,181.94,2.7504]
[1734881370902,14.59536076,182.05,181.97,2.75]
[1734881371097,3.62,182.04,181.97,2.75]
[1734881371294,2.7494,182.02,181.97,2.75]
[1734881371600,5.4953,182.13,182.01,2.7493]
[1734881371804,14.59536076,182.07,181.93,91.41567287]
[1734881371992,2.7489,182.04,181.93,91.41567287]
[1734881372600,3.62,182.06,181.93,91.41567287]
[1734881372901,3.62,182.06,181.96,91.41567287]
[1734881373102,3.62,182.1,182.05,2.7487]
[1734881373402,3.62,182.1,181.97,5.2557]
[1734881373599,3.62,182.1,181.98,91.41567287]
[1734881373995,2.7485,182.07,182.03,2.749]
[1734881374997,14.59536076,182.06,182.0,93.01567287]
[1734881375397,14.59536076,182.06,182.01,91.41567287]
[1734881375598,2.7491,182.03,182.01,91.41567287]
[1734881375799,14.59536076,182.06,182.01,91.41567287]
[1734881376202,14.59536076,182.06,181.99,1.6514]
[1734881376401,3.62,182.05,181.97,91.41567287]
[1734881377098,3.62,182.05,181.96,243.84843787]
[1734881377302,3.62,182.05,181.98,21.99793206]
[1734881377903,2.7491,182.03,181.98,21.99793206]
[1734881378103,3.62,182.05,181.95,95.87387287]
[1734881378311,3.62,182.05,181.95,93.12367287]
[1734881378598,2.7496,182.0,181.96,2.7501]
[1734881378796,2.7496,182.0,181.96,22.0029437]
[1734881379301,2.7493,182.02,181.98,2.7498]
[1734881379508,3.62,182.06,181.96,22.0029437]
[1734881379699,3.62,182.06,181.95,1.708]
[1734881380204,2.749,182.04,182.0,2.7494]
[1734881381006,2.749,182.04,182.01,2.7494]
[1734881381205,2.7487,182.06,181.97,91.41567287]
[1734881381401,14.59536076,182.08,182.03,2.749]
[1734881381804,2.7486,182.07,182.03,2.749]
[1734881382104,14.59536076,182.08,182.01,2.7493]
[1734881382703,14.59536076,182.08,182.0,94.16517287]
[1734881382905,14.59536076,182.08,182.0,91.41567287]
[1734881383200,14.59536076,182.08,181.98,218.49479831]
[1734881383201,2.7492,182.03,181.99,91.41567287]
[1734881383396,2.7492,182.03,181.99,94.16527287]
[1734881383904,2.7492,182.03,181.99,2.7496]
[1734881384104,14.59536076,182.08,181.97,91.41567287]
[1734881384105,2.7496,182.0,181.97,91.41567287]
[1734881384503,14.59536076,182.05,181.97,91.41567287]
[1734881384807,2.7497,181.99,181.97,91.41567287]
[1734881385004,2.7497,181.99,181.95,95.87387287]
[1734881386205,2.7497,181.99,181.96,142.94324629]
[1734881386707,14.59536076,182.02,181.96,142.94324629]
[1734881386908,14.59536076,182.02,181.97,22.08324575]
[1734881387107,2.7498,181.98,181.97,22.08324575]
[1734881387804,14.59536076,182.02,181.95,93.12367287]
[1734881388004,2.75,181.97,181.95,93.12367287]
[1734881388808,2.75,181.97,181.96,22.11220503]
[1734881389909,2.75,181.97,181.95,1.708]
[1734881390810,14.59536076,182.02,181.95,1.708]
[1734881391011,14.59536076,182.02,181.96,2.75]
[1734881391414,2.7496,182.0,181.96,24.84835493]